[Event "Israel-ch Disabled 2024"]
[Site "Haifa"]
[Date "2024.05.23"]
[Round "3.2"]
[White "Rozhanski, Yosef"]
[Black "Streltsov, Alexey"]
[Result "0-1"]
[ECO "D03"]
[WhiteElo "2127"]
[BlackElo "2292"]
[Annotator "RC"]
[PlyCount "152"]
[EventDate "2024.05.20"]
[EventType "swiss"]
[EventCountry "ISR"]
[SourceTitle "playchess.com"]
[Source "ChessBase"]
[SourceQuality "1"]
[TimeControl "1200+10"]

1. d4 {[%emt 0:00:03]} d5 {[%emt 0:00:02]} 2. Nf3 {[%emt 0:00:02]} Nf6 {[%emt 0:00:02]} 3. Bg5 {[%emt 0:00:09]} Ne4 {[%emt 0:00:05]} 4. Bf4 {[%emt 0:00:16]} c5 {[%emt 0:00:06]} 5. c3 {[%emt 0:00:03]} Qb6 {[%emt 0:00:40]} 6. Qc1 {[%emt 0:00:44]} Bf5 {[%emt 0:00:20]} 7. e3 {[%emt 0:00:10]} e6 {[%emt 0:00:10]} 8. Nbd2 {[%emt 0:00:11]} Bd6 {[%emt 0:01:16]} 9. Nxe4 {[%emt 0:02:30]} Bxe4 {[%emt 0:00:09]} 10. Bxd6 {[%emt 0:00:41]} Qxd6 {[%emt 0:00:02]} 11. Nd2 {[%emt 0:00:18]} Bg6 {[%emt 0:00:24]} 12. Bb5+ {[%emt 0:00:53]} Nc6 {[%emt 0:00:01]} 13. O-O {[%emt 0:00:04]} O-O {[%emt 0:00:03]} 14. Re1 {[%emt 0:03:52]} Rfc8 {[%emt 0:00:44]} 15. Nb3 {[%emt 0:00:59]} c4 {[%emt 0:00:29]} 16. Bxc6 {[%emt 0:00:09]} Qxc6 {[%emt 0:00:20]} 17. Nd2 {[%emt 0:00:07]} Bd3 {[%emt 0:00:01]} 18. f3 {[%emt 0:00:33]} f5 {[%emt 0:00:02]} 19. f4 {[%emt 0:01:32]} b5 {[%emt 0:00:49]} 20. Nf3 {[%emt 0:00:03]} Qb7 {[%emt 0:00:01]} 21. Ne5 {[%emt 0:00:38]} Be4 {[%emt 0:00:01]} 22. Qd2 {[%emt 0:00:03]} a5 {[%emt 0:00:10]} 23. a3 {[%emt 0:00:36]} Rab8 {[%emt 0:00:42]} 24. Ra2 {[%emt 0:01:30]} b4 {[%emt 0:01:41]} 25. axb4 {[%emt 0:00:09]} axb4 {[%emt 0:00:00]} 26. Rea1 {[%emt 0:00:07]} Ra8 {[%emt 0:01:40]} 27. cxb4 {[%emt 0:01:03]} Rxa2 {[%emt 0:00:02]} 28. Rxa2 {[%emt 0:00:02]} Ra8 {[%emt 0:00:09]} 29. Rxa8+ {[%emt 0:00:38]} Qxa8 {[%emt 0:00:00]} 30. Kf2 {[%emt 0:00:03]} Qa4 {[%emt 0:00:29]} 31. Kg3 {[%emt 0:01:43]} h6 {[%emt 0:01:20]} 32. h4 {[%emt 0:00:22]} Kh7 {[%emt 0:00:29]} 33. Kh2 {[%emt 0:01:33]} Qa1 {[%emt 0:00:51]} 34. Kg3 {[%emt 0:01:30]} Qa4 {[%emt 0:00:54]} 35. Kh2 {[%emt 0:00:03]} Qe8 {[%emt 0:00:02]} 36. Nf3 {[%emt 0:00:28]} Qh5 {[%emt 0:00:47]} 37. Qf2 {[%emt 0:00:26]} Qf7 {[%emt 0:00:43]} 38. Qe1 {[%emt 0:00:11]} Bxf3 {[%emt 0:01:56]} 39. gxf3 {[%emt 0:00:01]} Qa7 {[%emt 0:00:00]} 40. Kg2 {[%emt 0:00:44]} Qa4 {[%emt 0:00:02]} 41. Qd2 {[%emt 0:00:05]} Kg6 {[%emt 0:00:03]} 42. Kh3 {[%emt 0:00:18]} Kf6 {[%emt 0:00:04]} 43. Qg2 {[%emt 0:00:16]} Qxb4 {[%emt 0:00:22]} 44. h5 {[%emt 0:00:08]} Qf8 {[%emt 0:00:01]} 45. Qg6+ {[%emt 0:00:06]} Ke7 {[%emt 0:00:01]} 46. Kg2 {[%emt 0:00:17]} Qf7 {[%emt 0:00:09]} 47. Qh7 {[%emt 0:00:12]} Kf8 {[%emt 0:00:16]} 48. Qh8+ {[%emt 0:00:32]} Qg8 {[%emt 0:00:01]} 49. Qxg8+ {[%emt 0:00:06]} Kxg8 {[%emt 0:00:01]} 50. Kh3 {[%emt 0:00:01]} Kf7 {[%emt 0:00:02]} 51. Kg3 {[%emt 0:00:06]} Kf6 {[%emt 0:00:03]} 52. Kh3 {[%emt 0:00:08]} Ke7 {[%emt 0:00:01]} 53. Kg2 {[%emt 0:00:01]} Kd6 {[%emt 0:00:01]} 54. Kf2 {[%emt 0:00:02]} Kc6 {[%emt 0:00:01]} 55. Ke2 {[%emt 0:00:01]} Kb5 {[%emt 0:00:01]} 56. Kd2 {[%emt 0:00:03]} Ka4 {[%emt 0:00:02]} 57. e4 {[%emt 0:00:20]} Kb3 {[%emt 0:00:05]} 58. Kc1 {[%emt 0:01:37]} c3 {[%emt 0:00:26]} 59. Kb1 {[%emt 0:00:10]} Kc4 {[%emt 0:00:08]} 60. bxc3 {[%emt 0:00:17]} Kxc3 {[%emt 0:00:01]} 61. exd5 {[%emt 0:00:01]} exd5 {[%emt 0:00:02]} 62. Kc1 {[%emt 0:00:01]} Kxd4 {[%emt 0:00:12]} 63. Kd2 {[%emt 0:00:01]} Kc4 {[%emt 0:00:01]} 64. Kc2 {[%emt 0:00:00]} d4 {[%emt 0:00:01]} 65. Kd2 {[%emt 0:00:01]} d3 {[%emt 0:00:01]} 66. Kd1 {[%emt 0:00:01]} Kd5 {[%emt 0:01:55]} 67. Kc1 {[%emt 0:00:05]} g6 {[%emt 0:01:46]} 68. hxg6 {[%emt 0:00:04]} Ke6 {[%emt 0:00:01]} 69. Kd2 {[%emt 0:00:02]} Kf6 {[%emt 0:00:00]} 70. Kxd3 {[%emt 0:00:02]} Kxg6 {[%emt 0:00:01]} 71. Ke3 {[%emt 0:00:13]} Kf6 {[%emt 0:00:01]} 72. Kf2 {[%emt 0:00:03]} Ke6 {[%emt 0:00:18]} 73. Kg3 {[%emt 0:01:29]} Kd5 {[%emt 0:00:13]} 74. Kh4 {[%emt 0:00:12]} Kd4 {[%emt 0:00:01]} 75. Kh5 {[%emt 0:00:01]} Ke3 {[%emt 0:00:01]} 76. Kxh6 {[%emt 0:00:06]} Kxf3 {[%emt 0:00:01]} 0-1

[Event "Israel-ch Disabled 2024"]
[Site "Haifa"]
[Date "2024.05.23"]
[Round "3.3"]
[White "Zilberman, Yaacov"]
[Black "Shabtai, Ran"]
[Result "1/2-1/2"]
[ECO "D21"]
[WhiteElo "2299"]
[BlackElo "2046"]
[Annotator "RC"]
[PlyCount "136"]
[EventDate "2024.05.20"]
[EventType "swiss"]
[EventCountry "ISR"]
[SourceTitle "playchess.com"]
[Source "ChessBase"]
[SourceQuality "1"]
[TimeControl "1200+10"]

1. d4 {[%emt 0:00:04]} d5 {[%emt 0:00:47]} 2. c4 {[%emt 0:00:05]} dxc4 {[%emt 0:00:15]} 3. Nf3 {[%emt 0:00:03]} a6 {[%emt 0:00:05]} 4. a4 {[%emt 0:00:10]} Nc6 {[%emt 0:01:03]} 5. e3 {[%emt 0:00:16]} Bg4 {[%emt 0:01:29]} 6. Bxc4 {[%emt 0:00:10]} e6 {[%emt 0:00:29]} 7. O-O {[%emt 0:00:12]} Nf6 {[%emt 0:00:10]} 8. Be2 {[%emt 0:00:24]} Bd6 {[%emt 0:00:22]} 9. b3 {[%emt 0:00:10]} O-O {[%emt 0:00:18]} 10. Bb2 {[%emt 0:00:10]} Qe7 {[%emt 0:01:21]} 11. Nbd2 {[%emt 0:00:12]} e5 {[%emt 0:01:12]} 12. dxe5 {[%emt 0:00:08]} Nxe5 {[%emt 0:00:09]} 13. Nxe5 {[%emt 0:00:14]} Bxe2 {[%emt 0:00:07]} 14. Qxe2 {[%emt 0:00:09]} Bxe5 {[%emt 0:00:04]} 15. Bxe5 {[%emt 0:00:51]} Qxe5 {[%emt 0:00:02]} 16. Nc4 {[%emt 0:00:08]} Qe6 {[%emt 0:00:31]} 17. Rfd1 {[%emt 0:01:07]} Rad8 {[%emt 0:00:32]} 18. h3 {[%emt 0:00:56]} Rxd1+ {[%emt 0:01:07]} 19. Rxd1 {[%emt 0:00:04]} b5 {[%emt 0:00:24]} 20. axb5 {[%emt 0:00:10]} axb5 {[%emt 0:00:01]} 21. Na5 {[%emt 0:01:04]} Qb6 {[%emt 0:02:04]} 22. b4 {[%emt 0:01:00]} c5 {[%emt 0:00:50]} 23. Nb3 {[%emt 0:00:41]} cxb4 {[%emt 0:03:28]} 24. Rd4 {[%emt 0:00:16]} Qe6 {[%emt 0:00:53]} 25. Rxb4 {[%emt 0:01:04]} Nd5 {[%emt 0:00:16]} 26. Nd4 {[%emt 0:01:35]} Qe4 {[%emt 0:00:46]} 27. Rb3 {[%emt 0:01:08]} b4 {[%emt 0:00:17]} 28. Qf3 {[%emt 0:05:41]} Qxf3 {[%emt 0:01:31]} 29. Nxf3 {[%emt 0:00:03]} Rb8 {[%emt 0:01:35]} 30. Nd4 {[%emt 0:00:11]} g6 {[%emt 0:00:19]} 31. g4 {[%emt 0:01:26]} Rc8 {[%emt 0:01:22]} 32. Kg2 {[%emt 0:00:29]} Rc4 {[%emt 0:00:19]} 33. Kf3 {[%emt 0:00:36]} Nc3 {[%emt 0:00:38]} 34. Rb2 {[%emt 0:00:40]} Kf8 {[%emt 0:00:44]} 35. Rc2 {[%emt 0:01:05]} Ke7 {[%emt 0:00:11]} 36. Rd2 {[%emt 0:01:11]} h6 {[%emt 0:00:04]} 37. Nb3 {[%emt 0:00:35]} Nb5 {[%emt 0:00:12]} 38. Rd5 {[%emt 0:00:14]} Rc3 {[%emt 0:00:04]} 39. Rxb5 {[%emt 0:00:22]} Rxb3 {[%emt 0:00:01]} 40. h4 {[%emt 0:00:10]} Kf6 {[%emt 0:00:08]} 41. Kf4 {[%emt 0:00:17]} Rb1 {[%emt 0:00:29]} 42. Rb6+ {[%emt 0:00:09]} Kg7 {[%emt 0:00:01]} 43. f3 {[%emt 0:00:20]} b3 {[%emt 0:00:07]} 44. e4 {[%emt 0:00:12]} Rh1 {[%emt 0:00:11]} 45. Kg3 {[%emt 0:00:14]} Rg1+ {[%emt 0:00:03]} 46. Kf2 {[%emt 0:00:06]} Rh1 {[%emt 0:00:09]} 47. Kg3 {[%emt 0:00:14]} Rg1+ {[%emt 0:00:05]} 48. Kh2 {[%emt 0:00:04]} Rb1 {[%emt 0:00:06]} 49. g5 {[%emt 0:00:08]} hxg5 {[%emt 0:00:03]} 50. hxg5 {[%emt 0:00:02]} Rb2+ {[%emt 0:00:07]} 51. Kg3 {[%emt 0:00:03]} Rb1 {[%emt 0:00:10]} 52. Kf4 {[%emt 0:00:15]} Rb2 {[%emt 0:00:21]} 53. Ke5 {[%emt 0:00:13]} Rc2 {[%emt 0:00:23]} 54. Rxb3 {[%emt 0:00:04]} Rc5+ {[%emt 0:00:01]} 55. Kf4 {[%emt 0:00:03]} Rc7 {[%emt 0:00:21]} 56. Rd3 {[%emt 0:00:05]} Rb7 {[%emt 0:00:05]} 57. Rd6 {[%emt 0:00:06]} Rc7 {[%emt 0:00:03]} 58. Kg3 {[%emt 0:00:05]} Rc1 {[%emt 0:00:08]} 59. Rd7 {[%emt 0:00:05]} Rg1+ {[%emt 0:00:15]} 60. Kf4 {[%emt 0:00:02]} Rg2 {[%emt 0:00:05]} 61. e5 {[%emt 0:00:11]} Re2 {[%emt 0:00:02]} 62. Re7 {[%emt 0:00:04]} Kf8 {[%emt 0:00:05]} 63. Ra7 {[%emt 0:00:03]} Re1 {[%emt 0:00:04]} 64. Ra6 {[%emt 0:00:09]} Rb1 {[%emt 0:00:13]} 65. e6 {[%emt 0:00:25]} Rb5 {[%emt 0:00:07]} 66. exf7 {[%emt 0:00:07]} Kxf7 {[%emt 0:00:01]} 67. Ra7+ {[%emt 0:00:04]} Kf8 {[%emt 0:00:09]} 68. Kg4 {[%emt 0:00:04]} Rb4+ {[%emt 0:01:26]} 1/2-1/2

[Event "Israel-ch Disabled 2024"]
[Site "Haifa"]
[Date "2024.05.23"]
[Round "3.4"]
[White "Gurbanov, Andrei"]
[Black "Pivnik, Mark"]
[Result "1-0"]
[ECO "A80"]
[WhiteElo "2296"]
[BlackElo "1779"]
[Annotator "ChessBase"]
[PlyCount "35"]
[EventDate "2024.05.20"]
[EventType "swiss"]
[EventCountry "ISR"]
[SourceTitle "playchess.com"]
[Source "ChessBase"]
[SourceQuality "1"]
[TimeControl "1200+10"]

1. d4 {[%emt 0:00:02]} f5 {[%emt 0:00:02]} 2. Nc3 {[%emt 0:00:02]} Nf6 {[%emt 0:00:02]} 3. Bf4 {[%emt 0:00:04]} d5 {[%emt 0:00:06]} 4. e3 {[%emt 0:00:05]} e6 {[%emt 0:00:02]} 5. h3 {[%emt 0:00:06]} c5 {[%emt 0:00:02]} 6. Nb5 {[%emt 0:00:16]} Na6 {[%emt 0:00:20]} 7. Nf3 {[%emt 0:00:11]} c4 {[%emt 0:00:52]} 8. c3 {[%emt 0:00:07]} Qb6 {[%emt 0:00:23]} 9. a4 {[%emt 0:00:23]} Bd7 {[%emt 0:00:09]} 10. b3 {[%emt 0:00:02]} Bxb5 {[%emt 0:00:53]} 11. axb5 {[%emt 0:00:02]} Qxb5 {[%emt 0:00:28]} 12. bxc4 {[%emt 0:00:19]} Qb2 {[%emt 0:02:32]} 13. Qc1 {[%emt 0:01:14]} Qxc1+ {[%emt 0:00:07]} 14. Rxc1 {[%emt 0:00:03]} Nb8 {[%emt 0:00:22]} 15. Rb1 {[%emt 0:00:19]} b6 {[%emt 0:00:48]} 16. c5 {[%emt 0:00:08]} Nfd7 {[%emt 0:02:06]} 17. Bb5 {[%emt 0:01:10]} bxc5 {[%emt 0:00:31]} 18. Bxb8 {[%emt 0:00:03]} 1-0

[Event "Israel-ch Disabled 2024"]
[Site "Haifa"]
[Date "2024.05.23"]
[Round "3.5"]
[White "Akman, Adi"]
[Black "Oliel, Yehonatan"]
[Result "1-0"]
[ECO "B02"]
[WhiteElo "2025"]
[BlackElo "1736"]
[Annotator "NA RC"]
[PlyCount "51"]
[EventDate "2024.05.20"]
[EventType "swiss"]
[EventCountry "ISR"]
[SourceTitle "playchess.com"]
[Source "ChessBase"]
[SourceQuality "1"]
[TimeControl "1200+10"]

1. e4 {[%emt 0:00:02]} Nf6 {[%emt 0:00:13]} 2. Nc3 {[%emt 0:00:01]} d5 {[%emt 0:00:06]} 3. exd5 {[%emt 0:00:02]} Nxd5 {[%emt 0:00:08]} 4. Bc4 {[%emt 0:00:03]} Be6 {[%emt 0:01:11]} 5. Bb3 {[%emt 0:00:05]} g6 {[%emt 0:00:40]} 6. Nf3 {[%emt 0:00:26]} Nxc3 {[%emt 0:01:07]} 7. bxc3 {[%emt 0:00:03]} Qd7 {[%emt 0:01:00]} 8. O-O {[%emt 0:00:43]} Bg7 {[%emt 0:00:21]} 9. Bxe6 {[%emt 0:00:23]} Qxe6 {[%emt 0:00:11]} 10. Re1 {[%emt 0:00:02]} Qd6 {[%emt 0:00:40]} 11. a4 {[%emt 0:00:11]} Nc6 {[%emt 0:01:54]} 12. Ba3 {[%emt 0:00:08]} Qd7 {[%emt 0:00:36]} 13. d4 {[%emt 0:00:21]} O-O {[%emt 0:00:17]} 14. d5 {[%emt 0:00:24]} Na5 {[%emt 0:01:10]} 15. Rxe7 {[%emt 0:00:33]} Qd8 {[%emt 0:01:18]} 16. Re1 {[%emt 0:01:26]} Bxc3 {[%emt 0:00:37]} 17. Bxf8 {[%emt 0:00:16]} Qxf8 {[%emt 0:00:45]} 18. Qd3 {[%emt 0:00:40]} Bxa1 {[%emt 0:00:45]} 19. Rxa1 {[%emt 0:00:03]} Rd8 {[%emt 0:00:45]} 20. c4 {[%emt 0:01:11]} Qc5 {[%emt 0:01:13]} 21. Nd2 {[%emt 0:00:10]} c6 {[%emt 0:00:22]} 22. Re1 {[%emt 0:01:27]} cxd5 {[%emt 0:00:21]} 23. Re5 {[%emt 0:03:44]} Nxc4 {[%emt 0:02:37]} 24. Qc3 {[%emt 0:00:27]} Rc8 {[%emt 0:00:45]} 25. Ne4 {[%emt 0:00:40]} d4 {[%emt 0:02:07]} 26. Rxc5 {[%emt 0:00:28]} 1-0

[Event "Israel-ch Disabled 2024"]
[Site "Haifa"]
[Date "2024.05.23"]
[Round "4.1"]
[White "Gruenfeld, Yehuda"]
[Black "Streltsov, Alexey"]
[Result "1/2-1/2"]
[ECO "B15"]
[WhiteElo "2405"]
[BlackElo "2292"]
[Annotator "TA"]
[PlyCount "97"]
[EventDate "2024.05.20"]
[EventType "swiss"]
[EventCountry "ISR"]
[SourceTitle "playchess.com"]
[Source "ChessBase"]
[SourceQuality "1"]
[TimeControl "1200+10"]

{[%evp 17,97,16,11,10,20,16,14,13,14,8,17,10,34,8,12,13,11,17,21,14,19,0,0,0,0,-16,0,-18,-12,-18,-16,-23,-19,-11,-16,-14,-24,-18,-14,-14,-10,-19,-2,-16,-17,-25,0,0,0,0,0,-45,-45,-38,-36,-43,-54,-45,-43,-46,-46,-51,-52,-47,-47,-35,0,0,0,-40,0,0,0,0,0,0,0,0,0,0,0,0]} 1. e4 {[%emt 0:00:03]} c6 {[%emt 0:00:08]} 2. d4 {[%emt 0:00:01]} d5 {[%emt 0:00:01]} 3. Nc3 {[%emt 0:00:01]} dxe4 {[%emt 0:00:03]} 4. Nxe4 {[%emt 0:00:01]} Nf6 {[%emt 0:00:01]} 5. Nxf6+ {[%emt 0:00:01]} exf6 {[%emt 0:00:01]} 6. c3 {[%emt 0:00:01]} Bd6 {[%emt 0:00:03]} 7. Bd3 {[%emt 0:00:02]} Na6 {[%emt 0:00:01] B15: Caro-Kann: 3 Nc3: 3...g6 and 3...dxe4 4 Nxe4 Nf6 5 Nxf6+ exf6.} 8. Ne2 $1 {[%emt 0:00:07] 8.Ne2 scores better than 8.Qc2.} Nc7 {[%emt 0:00:04]} 9. O-O {[%emt 0:00:46]} O-O {[%emt 0:00:09]} 10. Bf4 {[%emt 0:00:06]} Re8 {[%emt 0:00:15]} 11. Qd2 {[%emt 0:00:23]} Nd5 {[%emt 0:00:48]} 12. Bxd6 {[%emt 0:00:47]} Qxd6 {[%emt 0:00:01]} 13. c4 {[%emt 0:00:09]} Ne7 {[%emt 0:01:22]} 14. Ng3 $146 {[%emt 0:00:05]} ({Predecessor:} 14. h3 Bf5 15. Rad1 Rad8 16. b3 g6 17. Rfe1 h5 18. Bxf5 Nxf5 19. d5 cxd5 20. cxd5 {½-½ Chavez,F (2142)-Krysa,L (2525) American Continental 16th 2022 (2)}) 14... Ng6 {[%emt 0:00:21]} 15. Rfe1 {[%emt 0:00:31]} Be6 {[%emt 0:00:08]} 16. Bf1 {[%emt 0:00:36]} Rad8 {[%emt 0:04:30]} 17. Rad1 {[%emt 0:00:03]} b6 {[%emt 0:00:04]} 18. b3 {[%emt 0:00:12]} f5 {[%emt 0:00:09]} 19. Qc2 {[%emt 0:00:50]} f4 {[%emt 0:01:10]} 20. Ne4 {[%emt 0:00:10]} Qd7 {[%emt 0:00:26]} 21. Ng5 {[%emt 0:02:09]} Bf5 {[%emt 0:00:02]} 22. Qd2 {[%emt 0:01:44]} Rxe1 {[%emt 0:02:29]} 23. Rxe1 {[%emt 0:00:11]} f6 {[%emt 0:00:32]} (23... Qxd4 $2 24. Re8+ Rxe8 25. Qxd4 $18) 24. Nf3 {[%emt 0:00:02]} Bg4 {[%emt 0:00:01]} 25. Qc3 {[%emt 0:00:20]} Bxf3 {[%emt 0:00:38]} 26. Qxf3 {[%emt 0:00:01]} Qxd4 {[%emt 0:00:02]} 27. Qxc6 {[%emt 0:00:05]} Ne5 {[%emt 0:00:01]} 28. Qe6+ {[%emt 0:00:51]} Kh8 {[%emt 0:00:00]} 29. h3 {[%emt 0:00:15]} Qd2 {[%emt 0:01:13]} (29... Qd7 {simplifies} 30. Qxd7 Rxd7 31. Be2 Kg8) 30. Re4 {[%emt 0:00:33]} h6 {[%emt 0:00:02]} 31. Qf5 {[%emt 0:00:02]} f3 {[%emt 0:00:29]} 32. gxf3 {[%emt 0:01:49]} Qxa2 {[%emt 0:01:10]} 33. Re3 {[%emt 0:00:29]} Qa1 {[%emt 0:03:31]} 34. f4 {[%emt 0:00:43]} (34. Kg2 $5 Rd1 35. Qc8+ Kh7 36. Bd3+ (36. Qf5+ $2 Ng6 $19) 36... Ng6 (36... Nxd3 37. Qf5+ Kg8 38. Rxd3 $11) (36... Rxd3 37. Rxd3 Nxd3 38. Qf5+ Kh8 39. Qxd3 $11) 37. Bxg6+ Kxg6 38. Qg4+ Kf7 39. Qe6+ (39. Qh5+ $2 g6 $19) 39... Kg6 40. Qg4+ Kf7 41. Qe6+ (41. Qh5+ $2 g6 $19) 41... Kg6 42. Qe8+ Kh7 43. Qe4+ Kh8 44. Qe8+ Kh7 45. Qe4+ Kh8 46. Qe8+ Kh7 $11) 34... Rd1 {[%emt 0:00:02]} 35. fxe5 {[%emt 0:00:06]} Rxf1+ {[%emt 0:00:02]} 36. Kg2 {[%emt 0:01:16]} Rg1+ {[%emt 0:00:01]} 37. Kf3 {[%emt 0:02:18]} Qd1+ {[%emt 0:00:02]} 38. Ke4 $1 {[%emt 0:00:22]} (38. Kf4 $2 Rg2 39. Qc8+ Kh7 40. exf6 (40. Qf5+ $2 g6 $19) 40... Rxf2+ 41. Ke4 Rxf6 $19 (41... gxf6 42. Qb7+ Kh8 43. Qb8+ Kh7 44. Qxa7+ Kh8 45. Qxb6 $14)) 38... Qc2+ {[%emt 0:04:31]} 39. Rd3 {[%emt 0:00:00]} Rg5 {[%emt 0:00:08]} 40. Qc8+ {[%emt 0:00:12]} Kh7 {[%emt 0:00:01]} 41. exf6 {[%emt 0:01:44]} Qe2+ {[%emt 0:00:01]} (41... Rd5 42. Kxd5 Qxd3+ 43. Kc6 Qf3+ 44. Kc7 Qxf6 45. Kb7 $11) (41... Qxf2 $5 42. Rf3 $8 Qe1+ 43. Re3 Qh1+ 44. Rf3 Qb1+ (44... gxf6 45. Qd7+ Kh8 46. Qd8+ Kh7 47. Qd7+ Kg6 48. Qe8+ Kh7 49. Qf7+ Rg7 50. Qxf6 $11) 45. Rd3 Qh1+ (45... gxf6 46. Qd7+ Kg8 47. Qe8+ Kg7 48. Qd7+ Kh8 49. Qd8+ Kg7 50. Qe7+ Kg6 51. Qe8+ Kg7 52. Qe7+ Kg6 53. Qe8+ Kg7 $11) 46. Rf3 Qe1+ (46... gxf6 47. Qd7+ Rg7 48. Qf5+ Kg8 49. Qxf6 $11) 47. Re3 Qf1 48. fxg7 Qb1+ (48... Qh1+ 49. Kd4 $11) 49. Kf4 Qf1+ (49... Kxg7 50. Re7+ Kg6 51. Qe8+ Kf6 52. Qf7#) 50. Rf3 Qc1+ 51. Re3 Qf1+ 52. Rf3 Qc1+ 53. Re3 Qf1+ $11) 42. Re3 {[%emt 0:00:09]} Qc2+ {[%emt 0:00:01]} 43. Rd3 {[%emt 0:00:46]} Qe2+ {[%emt 0:00:48]} (43... Rd5 44. Kxd5 Qxd3+ 45. Kc6 Qf3+ 46. Kc7 Qxf6 47. Kb8 $11) 44. Re3 {[%emt 0:00:06]} Qxf2 {[%emt 0:00:27]} 45. fxg7 {[%emt 0:00:09]} Qg2+ {[%emt 0:00:02]} 46. Kd3 {[%emt 0:01:52]} Qf1+ {[%emt 0:00:17]} ({Much weaker is} 46... Rxg7 $6 47. Qf5+ Qg6 48. Qxg6+ Rxg6 49. b4 $18) 47. Ke4 {[%emt 0:00:18]} Qg2+ {[%emt 0:00:16]} 48. Kd3 {[%emt 0:00:34]} Qf1+ {[%emt 0:00:01]} ({But not} 48... Rxg7 $6 49. Qf5+ Qg6 50. Qxg6+ Rxg6 51. b4 $18) 49. Ke4 {[%emt 0:00:18]} 1/2-1/2

[Event "Israel-ch Disabled 2024"]
[Site "Haifa"]
[Date "2024.05.23"]
[Round "4.2"]
[White "Gurbanov, Andrei"]
[Black "Zilberman, Yaacov"]
[Result "0-1"]
[ECO "A56"]
[WhiteElo "2296"]
[BlackElo "2299"]
[Annotator "RC"]
[PlyCount "100"]
[EventDate "2024.05.20"]
[EventType "swiss"]
[EventCountry "ISR"]
[SourceTitle "playchess.com"]
[Source "ChessBase"]
[SourceQuality "1"]
[TimeControl "1200+10"]

1. d4 {[%emt 0:00:02]} Nf6 {[%emt 0:00:02]} 2. c4 {[%emt 0:00:14]} c5 {[%emt 0:00:04]} 3. d5 {[%emt 0:00:02]} e5 {[%emt 0:00:03]} 4. Nc3 {[%emt 0:00:24]} d6 {[%emt 0:00:05]} 5. g3 {[%emt 0:00:14]} Be7 {[%emt 0:00:11]} 6. Bg2 {[%emt 0:00:03]} O-O {[%emt 0:00:05]} 7. Nf3 {[%emt 0:00:41]} Nbd7 {[%emt 0:00:06]} 8. O-O {[%emt 0:00:12]} a6 {[%emt 0:00:03]} 9. a4 {[%emt 0:00:06]} Rb8 {[%emt 0:00:03]} 10. Qc2 {[%emt 0:00:26]} Ne8 {[%emt 0:00:08]} 11. e4 {[%emt 0:00:48]} g6 {[%emt 0:00:07]} 12. Bh6 {[%emt 0:00:25]} Ng7 {[%emt 0:00:02]} 13. Qd2 {[%emt 0:00:07]} Nf6 {[%emt 0:00:32]} 14. h3 {[%emt 0:00:17]} Kh8 {[%emt 0:00:08]} 15. Nh2 {[%emt 0:01:11]} b6 {[%emt 0:00:44]} 16. f4 {[%emt 0:00:35]} Ng8 {[%emt 0:00:16]} 17. Bxg7+ {[%emt 0:00:35]} Kxg7 {[%emt 0:00:06]} 18. fxe5 {[%emt 0:00:01]} dxe5 {[%emt 0:00:03]} 19. Rad1 {[%emt 0:00:27]} Bd6 {[%emt 0:00:12]} 20. Rde1 {[%emt 0:00:40]} Bd7 {[%emt 0:00:19]} 21. Kh1 {[%emt 0:01:02]} b5 {[%emt 0:00:47]} 22. axb5 {[%emt 0:00:07]} axb5 {[%emt 0:00:01]} 23. Nxb5 {[%emt 0:00:16]} Bxb5 {[%emt 0:00:03]} 24. cxb5 {[%emt 0:00:01]} Rxb5 {[%emt 0:00:05]} 25. Rf2 {[%emt 0:00:06]} Rb4 {[%emt 0:00:23]} 26. Ng4 {[%emt 0:00:15]} f6 {[%emt 0:00:44]} 27. Ref1 {[%emt 0:00:50]} Qe7 {[%emt 0:01:12]} 28. h4 {[%emt 0:00:22]} h5 {[%emt 0:00:38]} 29. Ne3 {[%emt 0:00:43]} Rfb8 {[%emt 0:00:25]} 30. Rc1 {[%emt 0:01:04]} Nh6 {[%emt 0:01:19]} 31. Nc4 {[%emt 0:00:32]} Qd7 {[%emt 0:00:36]} 32. Rxf6 {[%emt 0:00:29]} Rxc4 {[%emt 0:01:31]} 33. Rxg6+ {[%emt 0:06:01]} Kxg6 {[%emt 0:00:04]} 34. Rxc4 {[%emt 0:00:02]} Kh7 {[%emt 0:00:48]} 35. Rc3 {[%emt 0:00:45]} Rg8 {[%emt 0:00:35]} 36. Ra3 {[%emt 0:00:17]} Rg7 {[%emt 0:02:41]} 37. Ra6 {[%emt 0:05:58]} Rxg3 {[%emt 0:00:53]} 38. Qf2 {[%emt 0:00:00]} Rg6 {[%emt 0:00:46]} 39. b4 {[%emt 0:00:00]} Ng4 {[%emt 0:00:54]} 40. Qf5 {[%emt 0:00:00]} Qe7 {[%emt 0:01:20]} 41. Qxh5+ {[%emt 0:00:00]} Kg7 {[%emt 0:00:04]} 42. bxc5 {[%emt 0:00:00]} Nf2+ {[%emt 0:00:37]} 43. Kh2 {[%emt 0:00:00]} Ng4+ {[%emt 0:02:34]} 44. Kh1 {[%emt 0:00:00]} Nf2+ {[%emt 0:01:38]} 45. Kh2 {[%emt 0:00:00]} Qf6 {[%emt 0:02:05]} 46. Ra7+ {[%emt 0:00:49]} Be7 {[%emt 0:00:59]} 47. Qf3 {[%emt 0:00:02]} Qxh4+ {[%emt 0:00:16]} 48. Kg1 {[%emt 0:00:42]} Nh3+ {[%emt 0:00:24]} 49. Kf1 {[%emt 0:00:02]} Rf6 {[%emt 0:00:16]} 50. Rxe7+ {[%emt 0:00:01]} Kf8 {[%emt 0:00:08]} 0-1